bitfinex-derivatives/quotes_SOLF0:USTF0_20251207
["timestamp","ask_amount","ask_price","bid_price","bid_amount"]
[1765094771777,0.39,131.76,131.71,3.3]
[1765094771778,0.39,131.74,131.71,3.3]
[1765094771981,107.7704,131.76,131.71,3.3]
[1765094771982,2.0620248,131.72,131.71,3.3]
[1765094773180,2.4520248,131.72,131.7,0.03834526]
[1765094773385,2.4520248,131.72,131.7,3.33834526]
[1765094773790,2.0620248,131.72,131.7,3.33834526]
[1765094775203,2.4520248,131.72,131.7,3.33834526]
[1765094775701,0.39,131.72,131.7,3.33834526]
[1765094775901,2.0620248,131.72,131.7,3.33834526]
[1765094776103,0.05087045,131.73,131.7,3.33834526]
[1765094780807,8.8921248,131.76,131.7,3.33834526]
[1765094781603,0.05131403,131.74,131.7,3.33834526]
[1765094782710,0.05131403,131.74,131.71,3.06]
[1765094784211,0.00131403,131.74,131.71,3.06]
[1765094784411,6.8293,131.78,131.73,3.06]
[1765094785108,65.18,131.79,131.73,3.06]
[1765094785410,0.05702782,131.77,131.76,3.06]
[1765094788520,0.05702782,131.77,131.76,5.1220248]
[1765094788816,0.49,131.81,131.77,3.06]
[1765094789710,0.04898897,131.8,131.79,3.06]
[1765094794218,0.53898897,131.8,131.78,3.10827447]
[1765094794522,2.60101377,131.8,131.78,3.10827447]
[1765094795414,0.49,131.79,131.78,0.04827447]
[1765094800324,3.71556811,131.79,131.78,0.04827447]
[1765094800624,68.43556811,131.79,131.78,0.04827447]
[1765094801521,0.44,131.77,131.73,3.06]
[1765094801820,0.44,131.76,131.73,3.06]
[1765094802525,7.3215097,131.76,131.73,3.11686626]
[1765094803224,0.44,131.75,131.73,3.11686626]
[1765094803428,0.44,131.75,131.73,0.05686626]
[1765094804026,0.44,131.74,131.73,0.05686626]
[1765094811634,10.05626811,131.75,131.73,3.26686626]
[1765094811837,64.74,131.74,131.73,3.26686626]
[1765094814037,6.8307,131.75,131.73,3.26686626]
[1765094814337,71.5907,131.75,131.73,3.26686626]
[1765094815034,6.8307,131.75,131.73,3.26686626]
[1765094815242,71.5907,131.75,131.73,3.26686626]
[1765094817039,72.0307,131.75,131.73,3.26686626]
[1765094819440,6.8307,131.75,131.73,3.26686626]
[1765094819633,71.5707,131.75,131.73,3.26686626]
[1765094820241,72.0107,131.75,131.73,3.26686626]
[1765094823139,0.44,131.74,131.73,3.26686626]
[1765094823845,0.44,131.74,131.73,0.05686626]
[1765094827143,71.5707,131.75,131.73,3.13686626]
[1765094827850,72.0107,131.75,131.73,3.13686626]
[1765094828642,71.5707,131.75,131.73,3.13686626]
[1765094829140,64.74,131.75,131.73,3.13686626]
[1765094829743,65.18,131.75,131.73,3.13686626]
[1765094832654,0.44,131.75,131.73,3.13686626]
[1765094835755,0.44,131.75,131.73,0.05686626]
[1765094841050,7.2707,131.75,131.73,0.05686626]
[1765094841252,0.44,131.74,131.73,0.05686626]
[1765094842151,3.66556811,131.74,131.73,0.05686626]
[1765094846667,0.44,131.73,131.69,3.09]
[1765094846964,65.16,131.72,131.69,3.09]
[1765094847664,65.20931362,131.72,131.69,3.14089704]
[1765094848366,0.44,131.71,131.69,0.05089704]
[1765094849066,3.66556811,131.7,131.69,0.05089704]
[1765094851869,0.44,131.7,131.69,0.05089704]
[1765094856271,67.99488173,131.72,131.69,0.05089704]
[1765094856272,0.44,131.71,131.69,3.14089704]
[1765094856464,65.18,131.71,131.69,3.14089704]
[1765094856871,0.44,131.71,131.69,3.14089704]
[1765094857169,65.18,131.71,131.69,3.14089704]
[1765094857576,64.74,131.71,131.69,3.14089704]
[1765094857768,0.48931362,131.72,131.69,3.14089704]
[1765094858366,0.44,131.71,131.69,3.14089704]
[1765094860270,0.44,131.71,131.69,0.05089704]
[1765094860483,0.44,131.7,131.69,0.05089704]
[1765094861480,2.50644793,131.71,131.69,3.14089704]
[1765094863081,2.06644793,131.71,131.69,3.14089704]
[1765094863777,6.88161362,131.72,131.69,3.14089704]
[1765094864376,0.04931362,131.72,131.69,3.14089704]
[1765094872574,0.04931362,131.72,131.7,3.38]
[1765094874681,0.04931362,131.72,131.7,10.2129]
[1765094874978,0.04931362,131.72,131.71,3.38]
[1765094875770,2.06644793,131.76,131.72,3.38]
[1765094876682,0.04985667,131.75,131.74,3.38]
[1765094879981,6.09196456,131.81,131.74,3.38]
[1765094880188,0.44,131.81,131.74,3.38]
[1765094880386,2.06644793,131.82,131.75,2.06644793]
[1765094880587,2.06644793,131.82,131.76,3.18]
[1765094880783,0.44,131.85,131.78,3.18]
[1765094881088,0.05193173,131.83,131.81,3.18]
[1765094881287,0.05523334,131.83,131.81,3.23771572]
[1765094886686,2.06644793,131.86,131.81,3.23771572]
[1765094886892,2.06644793,131.88,131.82,3.18]
[1765094887394,2.56644793,131.88,131.82,3.18]
[1765094887894,0.05667668,131.86,131.85,3.18]
[1765094889895,8.88894793,131.91,131.85,3.18]
[1765094890292,9.43894793,131.91,131.85,3.18]
[1765094890692,0.05579279,131.89,131.87,3.22996855]
[1765094891099,0.60579279,131.89,131.87,3.22996855]
[1765094892295,0.55,131.88,131.87,0.04996855]
[1765094892695,0.05579279,131.89,131.87,3.22996855]
[1765094896194,2.61644793,131.88,131.87,0.04996855]
[1765094900301,67.33644793,131.88,131.87,0.04996855]
[1765094902409,64.72,131.88,131.87,3.21996855]
[1765094908314,7.42929279,131.89,131.87,3.21996855]
[1765094909015,0.60579279,131.89,131.87,3.21996855]
[1765094912114,0.60579279,131.89,131.87,0.04996855]
[1765094912413,2.61644793,131.88,131.87,0.04996855]
[1765094913214,0.55,131.87,131.82,3.17]
[1765094913411,2.61644793,131.86,131.82,3.17]
[1765094914113,0.05207174,131.85,131.84,3.17]
[1765094914316,0.60207174,131.85,131.83,3.22557942]
[1765094915015,2.61644793,131.84,131.83,0.05557942]
[1765094915617,0.05207174,131.85,131.83,3.22557942]
[1765094922723,6.8231,131.9,131.83,3.22557942]
[1765094923526,0.05306422,131.88,131.83,3.22557942]
[1765094925523,0.05306422,131.88,131.84,6.8257]
[1765094925730,0.05306422,131.88,131.85,3.17]
[1765094928333,0.60306422,131.88,131.85,3.17]
[1765094930836,0.05306422,131.88,131.85,3.17]
[1765094933636,0.60306422,131.88,131.85,3.17]
[1765094941447,0.05306422,131.88,131.85,3.17]
[1765094943555,0.05306422,131.88,131.85,6.8252]
[1765094943859,0.05306422,131.88,131.86,3.12]
[1765094944157,0.05306422,131.88,131.86,3.17041907]
[1765094952059,0.05306422,131.88,131.86,9.99501907]
[1765094952269,0.05306422,131.88,131.87,3.12]
[1765094952456,10.59176476,131.93,131.87,3.12]
[1765094952952,7.3715,131.93,131.87,3.12]
[1765094953352,0.55,131.93,131.88,3.12]
[1765094953562,0.05729095,131.91,131.9,3.12]
[1765094975878,0.60729095,131.91,131.9,3.12]
[1765094979078,0.05729095,131.91,131.9,3.12]
[1765095001389,0.60729095,131.91,131.89,3.21835179]
[1765095004394,0.05729095,131.91,131.89,3.21835179]
[1765095008692,0.55,131.9,131.89,3.21835179]
[1765095009394,7.42979095,131.91,131.89,3.21835179]
[1765095010293,0.55,131.9,131.89,3.21835179]
[1765095010489,2.6093742,131.9,131.89,0.04835179]
[1765095014502,67.2493742,131.9,131.89,0.04835179]
[1765095019910,67.2493742,131.9,131.89,3.40835179]
[1765095026115,2.6093742,131.9,131.89,3.40835179]
[1765095026409,65.23729095,131.91,131.89,3.40835179]
[1765095026610,64.69729095,131.91,131.89,3.40835179]
[1765095027911,65.23729095,131.91,131.89,3.40835179]
[1765095033414,0.54,131.9,131.89,3.40835179]
[1765095034913,64.69729095,131.91,131.89,3.40835179]
[1765095035114,65.23729095,131.91,131.89,3.40835179]
[1765095039321,0.59729095,131.91,131.89,3.40835179]
[1765095044223,0.05729095,131.91,131.89,3.40835179]
[1765095061933,0.59729095,131.91,131.89,3.40835179]
[1765095063536,7.41969095,131.91,131.89,3.40835179]
[1765095086967,6.87969095,131.91,131.89,3.40835179]
[1765095087872,0.05729095,131.91,131.89,3.40835179]
[1765095100575,0.60729095,131.91,131.89,0.04835179]
[1765095101681,0.55,131.9,131.89,0.04835179]
[1765095114588,2.610134,131.9,131.89,0.04835179]
[1765095133501,0.55,131.88,131.86,3.27]
[1765095134504,0.6015923,131.88,131.86,3.32079902]
[1765095137006,0.0515923,131.88,131.86,3.32079902]
[1765095140107,0.6015923,131.88,131.86,3.32079902]
[1765095149213,0.0515923,131.88,131.86,3.32079902]
[1765095159217,0.6015923,131.88,131.86,3.32079902]
[1765095160223,0.6015923,131.88,131.86,0.05079902]
[1765095160224,0.55,131.87,131.86,0.05079902]
[1765095164629,6.8254,131.85,131.79,3.13]
[1765095164826,0.5,131.82,131.79,3.13]
[1765095165226,0.5,131.83,131.79,3.13]
[1765095165727,0.05458306,131.82,131.81,3.13]
[1765095179438,0.55458306,131.82,131.81,3.13]
[1765095179637,0.55458306,131.82,131.8,0.05620358]
[1765095179937,0.55458306,131.82,131.8,3.13620358]
[1765095180144,7.38168306,131.82,131.8,3.13620358]
[1765095180942,0.5,131.81,131.8,3.13620358]
[1765095181441,7.38168306,131.82,131.8,3.13620358]
[1765095183847,64.64,131.81,131.8,3.13620358]
[1765095192343,65.14,131.81,131.8,3.13620358]
[1765095193049,64.64,131.81,131.8,3.13620358]
[1765095197852,65.14,131.81,131.8,3.13620358]
[1765095198042,65.14,131.81,131.8,0.05620358]
[1765095203354,0.5,131.79,131.76,3.31]
[1765095203847,65.14,131.78,131.76,3.31]
[1765095204452,65.19653534,131.78,131.76,3.35863114]
[1765095210562,0.5,131.77,131.76,0.04863114]
[1765095214362,3.72254345,131.77,131.76,0.04863114]
[1765095214563,3.72254345,131.77,131.7,3.31]
[1765095214564,0.45,131.75,131.7,3.31]
[1765095214864,0.45,131.74,131.7,3.31]
[1765095215465,0.50496838,131.73,131.71,0.05212397]
[1765095217565,0.45,131.72,131.71,0.05212397]
[1765095219552,3.67254345,131.72,131.71,0.05212397]
[1765095220471,0.4,131.71,131.66,3.31]
[1765095221364,0.4,131.69,131.67,3.36339865]
[1765095221564,65.12881983,131.69,131.67,3.36339865]
[1765095223478,0.04881983,131.69,131.67,3.36339865]
[1765095224277,0.44881983,131.69,131.67,3.36339865]
[1765095224971,0.44881983,131.69,131.67,0.05339865]
[1765095225175,0.44881983,131.69,131.67,3.36339865]
[1765095228378,2.51572452,131.69,131.67,3.36339865]
[1765095228579,0.4,131.68,131.67,0.05339865]
[1765095229174,65.08,131.68,131.67,0.05339865]
[1765095236688,67.14690469,131.68,131.67,0.05339865]
[1765095243893,64.68,131.68,131.67,3.31339865]
[1765095244694,65.08,131.68,131.67,3.31339865]
[1765095246403,65.08,131.68,131.67,0.05339865]
[1765095249296,0.4,131.68,131.67,3.31339865]
[1765095249503,2.11572452,131.69,131.67,3.31339865]
[1765095249796,0.04881983,131.69,131.67,3.31339865]
[1765095256896,0.44881983,131.69,131.67,3.31339865]
[1765095257905,0.04881983,131.69,131.67,3.31339865]
[1765095267500,0.04881983,131.69,131.68,3.16]
[1765095273411,7.2314,131.74,131.68,3.16]
[1765095273710,2.46690469,131.73,131.68,3.16]
[1765095273912,0.4,131.72,131.68,3.16]
[1765095274609,0.05623699,131.71,131.7,3.16]
[1765095276405,0.45623699,131.71,131.69,0.05373351]
[1765095276711,0.45623699,131.71,131.69,3.21373351]
[1765095282314,0.05623699,131.71,131.69,3.21373351]
[1765095288011,0.45623699,131.71,131.69,3.21373351]
[1765095288607,0.05623699,131.71,131.69,3.21373351]
[1765095289010,0.05623699,131.71,131.69,10.04723351]
[1765095289221,0.05623699,131.71,131.7,3.29]
[1765095306238,0.45623699,131.71,131.69,0.05373351]
[1765095307439,0.4,131.7,131.69,3.12373351]
[1765095308226,0.45623699,131.71,131.69,3.12373351]
[1765095308633,0.05623699,131.71,131.69,3.12373351]
[1765095316346,0.45623699,131.71,131.69,0.05373351]
[1765095316647,0.45623699,131.71,131.69,3.12373351]
[1765095317543,7.28903699,131.71,131.69,3.12373351]
[1765095317839,0.4,131.7,131.69,3.12373351]
[1765095318245,7.28903699,131.71,131.69,3.12373351]
[1765095318432,0.4,131.7,131.69,3.18373351]
[1765095318941,0.4,131.7,131.69,0.05373351]
[1765095319349,0.4,131.7,131.69,3.18373351]
[1765095319939,6.88903699,131.71,131.69,3.18373351]
[1765095320144,7.28903699,131.71,131.69,3.18373351]
[1765095321148,0.4,131.7,131.69,3.18373351]
[1765095322851,6.88903699,131.71,131.69,3.18373351]
[1765095325050,7.28903699,131.71,131.69,3.18373351]
[1765095332456,0.4,131.7,131.69,0.05373351]
[1765095332661,0.4,131.68,131.64,3.13]
[1765095333858,0.05415493,131.67,131.66,3.13]
[1765095359677,106.2559,131.75,131.67,3.07]
[1765095359678,7.2818,131.73,131.67,3.07]
[1765095359873,9.34833918,131.73,131.67,3.07]
[1765095360386,2.06653918,131.71,131.67,3.07]
[1765095360775,0.04839772,131.7,131.69,3.07]
[1765095366601,2.06653918,131.73,131.69,3.07]
[1765095367600,0.05798925,131.72,131.69,3.07]
[1765095374506,6.8306,131.75,131.7,3.07]
[1765095375006,7.2806,131.75,131.7,3.07]
[1765095375505,0.05119521,131.74,131.71,3.11914849]
[1765095377208,0.05119521,131.74,131.71,9.95154849]
[1765095377404,0.05119521,131.74,131.72,3.07]
[1765095378105,0.05119521,131.74,131.72,9.9019]
[1765095378302,0.05119521,131.74,131.73,3.07]
[1765095378501,2.51653918,131.78,131.73,3.07]
[1765095379204,0.45,131.8,131.75,3.07]
[1765095379508,0.05381896,131.79,131.77,3.07]
[1765095380807,0.45,131.82,131.77,3.07]
[1765095381509,0.45,131.82,131.78,3.07]
[1765095382003,0.05368453,131.81,131.8,3.07]
[1765095384405,2.51653918,131.85,131.8,3.07]
[1765095385405,0.05811383,131.84,131.8,3.07]
[1765095396725,0.05811383,131.84,131.8,9.8978]
[1765095396923,0.05811383,131.84,131.81,3.07]
[1765095399621,0.50811383,131.84,131.81,3.07]
[1765095400124,0.05811383,131.84,131.81,3.07]
[1765095407725,0.45,131.83,131.81,3.07]
[1765095408615,0.05811383,131.84,131.81,3.07]
[1765095409021,0.05811383,131.84,131.83,3.22]
[1765095420636,0.50811383,131.84,131.83,3.22]
[1765095420839,0.50811383,131.84,131.82,0.05834376]
[1765095421843,0.50811383,131.84,131.82,3.12834376]
[1765095422236,0.45,131.83,131.82,0.05834376]
[1765095422432,0.45,131.82,131.78,3.07]
[1765095423434,71.9167,131.83,131.79,0.04796977]
[1765095423639,0.05585175,131.81,131.8,3.07]
[1765095434539,64.64,131.83,131.8,3.07]
[1765095434740,7.2752,131.86,131.8,3.07]
[1765095435450,0.04990104,131.84,131.83,3.07]
[1765095456570,294.1100626,131.88,131.83,3.07]
[1765095457074,294.6100626,131.88,131.83,3.07]
[1765095457475,0.05455126,131.87,131.83,3.07]
[1765095461668,0.05455126,131.87,131.83,9.8962]
[1765095461876,0.05455126,131.87,131.84,3.09]
[1765095465882,0.05455126,131.87,131.84,9.9157]
[1765095466082,0.05455126,131.87,131.85,3.09]
[1765095466286,0.05455126,131.87,131.85,3.14238775]
[1765095466679,64.64,131.9,131.86,3.09]
[1765095467688,0.05392327,131.89,131.86,3.09]
[1765095468482,0.05392327,131.89,131.88,3.14]
[1765095470385,9.38089994,131.93,131.88,3.14]
[1765095470584,0.55,131.92,131.88,3.14]
[1765095471291,0.55,131.92,131.87,6.8241]
[1765095471292,0.05571021,131.91,131.9,3.14]
[1765095476792,0.55,131.9,131.89,3.22786451]
[1765095477093,2.66521015,131.91,131.89,3.22786451]
[1765095477795,2.11521015,131.91,131.89,3.22786451]
[1765095479099,0.05571021,131.91,131.89,3.22786451]
[1765095482392,9.48751015,131.91,131.89,3.22786451]
[1765095486000,7.42801021,131.91,131.89,3.22786451]
[1765095486201,9.48751015,131.91,131.89,3.22786451]
[1765095491103,7.42801021,131.91,131.89,3.22786451]
[1765095494111,0.55,131.9,131.89,0.04786451]
[1765095497107,2.60949994,131.9,131.89,0.04786451]
[1765095498406,0.55,131.87,131.85,3.31]
[1765095498801,0.55,131.87,131.83,3.31]
[1765095499303,2.05949994,131.88,131.82,164.70442537]
[1765095499304,0.60299937,131.86,131.84,3.36807427]
[1765095500307,0.55,131.85,131.84,0.05807427]
[1765095503519,0.55,131.85,131.84,3.36807427]
[1765095505719,0.55,131.85,131.84,0.05807427]
[1765095506421,0.55,131.85,131.84,3.36807427]
[1765095507019,2.66249931,131.86,131.84,3.36807427]
[1765095507321,0.55,131.85,131.84,0.05807427]
[1765095508820,0.55,131.85,131.84,3.36807427]
[1765095509022,9.48749931,131.86,131.84,3.36807427]
[1765095509722,0.55,131.85,131.84,3.36807427]
[1765095514026,0.55,131.85,131.84,0.05807427]
[1765095514726,0.55,131.83,131.79,3.31]
[1765095514917,2.60949994,131.82,131.79,3.31]
[1765095515723,9.49345542,131.82,131.79,3.35930673]
[1765095515923,0.55,131.81,131.79,3.35930673]
[1765095516427,9.49345542,131.82,131.79,3.35930673]
[1765095519626,0.05685548,131.82,131.79,3.35930673]
[1765095523523,0.05685548,131.82,131.79,10.18760673]
[1765095523931,0.05685548,131.82,131.8,3.31]
[1765095526132,0.05685548,131.82,131.8,10.1378]
[1765095526322,7.3752,131.86,131.81,3.31]
[1765095527137,2.05949994,131.87,131.82,3.31]
[1765095527318,0.05534202,131.86,131.84,3.12]
[1765095532641,0.66534202,131.86,131.84,3.12]
[1765095533633,0.66534202,131.86,131.83,3.17477134]
[1765095534329,0.61,131.85,131.83,0.05477134]
[1765095535633,0.61,131.84,131.83,0.05477134]
[1765095539341,0.61,131.84,131.83,3.32477134]
[1765095539842,7.4354,131.85,131.83,3.32477134]
[1765095540039,0.61,131.84,131.83,0.05477134]
[1765095540845,7.4354,131.85,131.83,3.32477134]
[1765095541845,0.61,131.84,131.83,3.32477134]
[1765095542143,0.61,131.84,131.83,0.05477134]
[1765095542334,0.61,131.84,131.83,3.32477134]
[1765095542534,7.4354,131.85,131.83,3.32477134]
[1765095542941,72.0954,131.85,131.83,3.32477134]
[1765095547846,0.05534202,131.86,131.83,3.32477134]
[1765095551453,0.05534202,131.86,131.84,3.27]
[1765095555960,0.05534202,131.86,131.84,10.0956]
[1765095556258,0.05534202,131.86,131.85,3.27]
[1765095567263,6.8229,131.9,131.85,3.27]
[1765095567459,7.4329,131.9,131.85,6.8252]
[1765095567673,7.4329,131.9,131.86,3.37]
[1765095568267,0.61,131.89,131.86,3.37]
[1765095568567,0.65983523,131.89,131.86,3.42718535]
[1765095578881,0.04983523,131.89,131.86,3.42718535]
[1765095582384,0.04983523,131.89,131.86,10.25188535]
[1765095582585,0.04983523,131.89,131.87,3.37]
[1765095583988,0.04983523,131.89,131.88,3.37]
[1765095585290,0.61,131.93,131.89,3.37]
[1765095586284,0.05329669,131.92,131.91,3.37]
[1765095591188,0.70329669,131.92,131.91,3.37]
[1765095593300,0.70329669,131.92,131.9,0.05187637]
[1765095594684,0.70329669,131.92,131.9,3.13187637]
[1765095597498,0.05329669,131.92,131.9,3.13187637]
[1765095613106,8.8798113,131.95,131.91,3.13]
[1765095613107,2.0593113,131.95,131.91,3.13]
[1765095613304,64.6,131.96,131.91,3.13]
[1765095614106,0.05518901,131.95,131.91,3.13]
[1765095614495,0.05518901,131.95,131.91,9.9521]
[1765095614806,0.05518901,131.95,131.92,3.13]
[1765095615701,0.05518901,131.95,131.92,9.9516]
[1765095616009,0.05518901,131.95,131.93,3.13]
[1765095616211,0.05518901,131.95,131.93,3.18141744]
[1765095616396,0.05518901,131.95,131.93,10.00241744]
[1765095616596,0.05518901,131.95,131.94,3.13]
[1765095619110,66.6393113,131.99,131.95,3.28]
[1765095619311,2.0593113,131.99,131.95,3.28]
[1765095620213,0.02086242,131.98,131.97,3.28]
[1765095636031,0.73086242,131.98,131.96,3.33831627]
[1765095637530,0.71,131.97,131.96,3.33831627]
[1765095637737,2.7693113,131.97,131.96,0.05831627]
[1765095638535,2.7693113,131.97,131.96,3.33831627]
[1765095639039,2.7693113,131.97,131.96,0.05831627]
[1765095645040,0.71,131.95,131.93,3.28]
[1765095646040,0.76645905,131.95,131.93,3.32900555]
[1765095646441,7.58675905,131.95,131.93,3.32900555]
[1765095650941,0.71,131.94,131.93,3.32900555]
[1765095651445,7.58675905,131.95,131.93,3.32900555]
[1765095663155,0.71,131.94,131.93,0.04900555]
[1765095677057,7.58675905,131.95,131.93,3.39900555]
[1765095689667,0.71,131.94,131.93,3.39900555]
[1765095690162,0.71,131.92,131.89,3.23]
[1765095691168,0.75951595,131.92,131.89,3.28539606]
[1765095695873,0.71,131.91,131.89,0.05539606]
[1765095697569,0.71,131.9,131.89,0.05539606]
[1765095701580,0.71,131.89,131.87,3.23]
[1765095702476,0.71,131.88,131.87,0.04852199]
[1765095702972,0.04866537,131.89,131.87,3.27852199]
[1765095725500,0.04866537,131.89,131.88,3.06]
[1765095727601,64.6,131.92,131.88,3.06]
[1765095728403,64.6,131.92,131.89,3.06]
[1765095728603,64.65776571,131.92,131.89,3.06]
[1765095728905,0.05776571,131.92,131.89,3.06]
[1765095733109,0.05776571,131.92,131.89,9.8831]
[1765095733405,0.05776571,131.92,131.9,3.06]
[1765095733611,0.05776571,131.92,131.9,3.11770519]
[1765095734106,0.05776571,131.92,131.9,9.94030519]
[1765095734316,0.05776571,131.92,131.91,3.06]
[1765095737317,329.59444163,131.97,131.92,3.31]
[1765095737508,2.88015794,131.97,131.92,3.31]
[1765095738317,0.05097999,131.96,131.94,3.31]
[1765095738519,0.87097999,131.96,131.94,3.31]
[1765095739422,0.05097999,131.96,131.94,3.31]
[1765095742322,0.87097999,131.96,131.94,3.31]
[1765095742621,0.05097999,131.96,131.94,3.31]
[1765095762436,66.62015794,132.0,131.95,3.31]
[1765095762640,67.49015794,132.0,131.95,3.31]
[1765095763444,0.89616923,131.99,131.97,3.31]
[1765095765246,0.02616923,131.99,131.97,3.31]
[1765095766844,0.89616923,131.99,131.97,3.31]
[1765095767145,0.02616923,131.99,131.97,3.31]
[1765095767345,0.89616923,131.99,131.97,3.31]
[1765095768543,0.02616923,131.99,131.97,3.31]
[1765095774662,0.89616923,131.99,131.97,3.31]
[1765095775556,0.02616923,131.99,131.97,3.31]
[1765095786666,61.51447618,132.0,131.97,3.31]
[1765095787060,7.6864,132.03,131.97,3.31]
[1765095787571,7.6864,132.03,131.99,3.05]
[1765095787769,7.6864,132.03,132.01,3.05]
[1765095789772,0.87,132.03,132.01,3.05]
[1765095789970,0.87,132.04,132.01,3.05]
[1765095794468,65.41,132.05,132.02,3.05]
[1765095794868,0.87,132.05,132.02,3.05]
[1765095795074,4.08415208,132.07,132.02,3.05]
[1765095795378,0.87,132.06,132.04,3.05]
[1765095797277,75.43795208,132.08,132.04,3.05]
[1765095797869,0.87,132.07,132.04,3.05]
[1765095799774,7.6841,132.07,132.04,3.05]
[1765095799981,0.87,132.06,132.04,3.05]
[1765095804085,7.6841,132.07,132.04,3.05]
[1765095806000,0.87,132.06,132.04,3.05]
[1765095807603,6.8141,132.07,132.04,3.05]
[1765095807904,7.6841,132.07,132.04,3.05]
[1765095809107,0.87,132.06,132.04,3.05]
[1765095810507,0.87,132.06,132.03,3.32204787]
[1765095811912,0.87,132.05,132.03,0.05204787]
[1765095812110,68.60415208,132.04,132.03,0.05204787]
[1765095812308,0.87,132.03,131.99,3.27]
[1765095812505,0.87,132.01,131.99,3.27]
[1765095812908,0.87,132.01,131.98,3.27]
[1765095813402,0.92204787,132.01,131.98,3.32091135]
[1765095815715,65.39,132.0,131.98,3.32091135]
[1765095816215,0.87,131.99,131.98,0.05091135]
[1765095817008,0.87,131.99,131.98,3.32091135]
[1765095818515,65.39,132.0,131.98,3.32091135]
[1765095819612,64.52,132.0,131.98,3.32091135]
[1765095820115,65.39,132.0,131.98,3.32091135]
[1765095827118,0.05204787,132.01,131.98,3.32091135]
[1765095827821,0.92204787,132.01,131.98,3.32091135]
[1765095835514,0.92204787,132.01,131.98,0.05091135]
[1765095835710,0.87,132.0,131.98,0.05091135]
[1765095836624,7.6879,132.0,131.98,0.05091135]
[1765095837220,0.87,131.99,131.98,0.05091135]
[1765095842728,0.87,131.99,131.98,3.40091135]
[1765095844427,0.87,131.99,131.98,0.05091135]
[1765095852527,2.92743589,131.99,131.98,0.05091135]
[1765095856031,67.46743589,131.99,131.98,0.05091135]
[1765095858433,0.87,131.98,131.94,3.35]
[1765095859538,0.92587243,131.97,131.95,3.18690755]
[1765095861442,0.05587243,131.97,131.95,3.18690755]
[1765095865331,0.05587243,131.97,131.95,10.00690755]
[1765095865532,0.05587243,131.97,131.96,3.13]
[1765095867044,8.87313589,132.04,131.98,3.13]
[1765095867547,9.80313589,132.04,131.98,3.13]
[1765095867939,0.04708679,132.02,132.01,3.13]
[1765095877549,65.47,132.05,132.02,3.13]
[1765095878247,64.54,132.05,132.02,3.13]
[1765095879358,0.93,132.06,132.02,3.13]
[1765095879557,0.93,132.06,132.04,3.13]
[1765095882562,71.3542,132.07,132.04,3.13]
[1765095882755,72.2842,132.07,132.04,3.13]
[1765095882951,71.3542,132.07,132.04,3.13]
[1765095883349,64.54,132.07,132.04,3.13]
[1765095886564,0.93,132.09,132.04,3.13]
[1765095887560,0.93,132.09,132.05,3.05]
[1765095887759,0.93,132.09,132.07,3.05]
[1765095889157,2.05743589,132.1,132.07,3.05]
[1765095889451,2.97743589,132.1,132.07,3.05]
[1765095891979,0.92,132.09,132.07,3.05]
[1765095893479,0.92,132.09,132.06,3.10476366]
[1765095893865,0.92,132.07,132.06,0.05476366]
[1765095896379,0.92,132.07,132.06,3.24476366]
[1765095899980,0.92,132.08,132.06,3.24476366]
[1765095901285,6.8131,132.09,132.06,3.24476366]
[1765095901678,72.2522,132.11,132.06,3.24476366]
[1765095902184,0.92,132.1,132.06,3.24476366]
[1765095903279,5.7123616,132.14,132.07,3.19]
[1765095903483,5.7123616,132.14,132.1,3.19]
[1765095903484,0.92,132.14,132.1,3.19]
[1765095912993,0.92,132.13,132.1,3.19]
[1765095913189,0.92,132.13,132.09,3.23818134]
[1765095914486,0.92,132.12,132.09,3.23818134]
[1765095929911,0.92,132.1,132.09,0.04818134]
[1765095946106,0.92,132.08,132.06,3.33]
[1765095946317,65.42,132.07,132.06,3.33]